Cogmind - Beta 14 @@@ ROGUE MODE // 2024.08.16 @ 16:54:44 Player: Adrenozin Result: Destroyed by G-47 Trooper with Particle Gun Performance ------------- Evolutions (2) 1000 Regions Visited (3) 600 Robots Destroyed (46) 230 Value Destroyed (1621) 1621 Prototype IDs (0) 0 Alien Tech Used (0) 0 Bonus (381) 381 TOTAL SCORE: 3832 Bonus ------- Pacifist 200 High Alert Combat Kills 181 Cogmind --------- Core Integrity 0/550 Matter 162/300 Energy 99/100 System Corruption 0% Temperature Cool (9) Movement Core (350) Ox6 Location -8/Materials Parts ------- > --- POWER (1) -------- (None) > --- PROPULSION (3) --- (None) > --- UTILITY (4) ------ Large Storage Unit > --- WEAPON (3) ------- (None) > --- INVENTORY (15) --- Aluminum Leg Disposable Heat Sink Small Storage Unit Improved Signal Interpreter Hacking Suite Datajack Peak State ------------ > --- POWER ------------ Ion Engine > --- PROPULSION ------- Armored Treads Armored Treads Armored Treads > --- UTILITY ---------- Disposable Heat Sink Large Storage Unit Sensor Array Improved Power Shielding > --- WEAPON ----------- Autogun Minigun Minigun > --- INVENTORY -------- Ion Engine Aluminum Leg Aluminum Leg Aluminum Leg Improved Heat Sink Small Storage Unit Hacking Suite Ion Cannon Assault Rifle Light Assault Rifle Light Assault Rifle Minigun Datajack [Rating: 27] Favorites ----------- Power Ion Engine Engine Ion Engine Propulsion Armored Treads Treads Armored Treads Leg Aluminum Leg Utility Large Storage Unit Device Disposable Heat Sink Storage Large Storage Unit Processor Targeting Computer Protection Improved Power Shielding Weapon Minigun Energy Gun EM Shotgun Energy Cannon Ion Cannon Ballistic Gun Minigun Launcher Grenade Launcher Build | -11 -10 -9 -8 ------- Run | Yrd Mat Mat Mat Slots Evolved 4 | . . 2 2 Power . | . . . . Propulsion 1 | . . 1 . Utility 2 | . . 1 1 Weapon 1 | . . . 1 Parts Attached 37 | 6 6 6 19 Power 4 | 1 1 . 2 Engine 4 | 1 1 . 2 Core . | . . . . Reactor . | . . . . Propulsion 10 | 2 . 3 5 Treads 3 | . . 3 . Leg 7 | 2 . . 5 Wheel . | . . . . Hover . | . . . . Flight . | . . . . Utility 11 | 1 3 2 5 Device 5 | . 2 1 2 Storage 3 | 1 1 . 1 Processor 1 | . . . 1 Hackware . | . . . . Protection 2 | . . 1 1 Artifact . | . . . . Weapon 12 | 2 2 1 7 Energy Gun 1 | . 1 . . Energy Cannon 1 | . . . 1 Ballistic Gun 9 | 2 1 1 5 Ballistic Cannon . | . . . . Launcher 1 | . . . 1 Special Weapon . | . . . . Impact Weapon . | . . . . Slashing Weapon . | . . . . Piercing Weapon . | . . . . Special Melee Weapon . | . . . . Unidentified Prototypes . | . . . . Parts Lost 20 | . . . 20 Power 2 | . . . 2 Propulsion 5 | . . . 5 Utility 6 | . . . 6 Weapon 7 | . . . 7 Highest Loss Streak 16 | . . . 16 To Critical Strikes . | . . . . Average Slot Usage (%) 95 | . 100 93 95 Engine 10 | . 14 11 8 Treads 17 | . . 24 19 Leg 9 | . 28 5 5 Device 14 | . 13 11 15 Storage 10 | . 14 11 9 Protection 7 | . . 7 8 Energy Gun 4 | . 13 6 . Ballistic Gun 19 | . 14 15 22 Launcher 1 | . . . 2 Peak Build Rating 27 | 6 10 22 27 Average Rating 19 | 4 9 18 23 On Entrance 9 | . 6 10 21 Naked Turns . | . . . . Heaviest Build 39 | 11 34 34 39 Greatest Support 60 | 20 20 60 60 Greatest Overweight (x) 11 | 1 1 1 11 Average Overweight (x) . | . . . . Largest Inventory Capacity 15 | 8 15 15 15 Average Capacity 14 | 7 11 15 15 Most Carried 15 | 2 8 13 15 Average Carried 10 | 1 6 10 12 Final Capacity 15 | 8 15 15 15 Final Carried 12 | 2 7 12 6 Class Distribution -------------------- 54% | Mutant 38% | Skirmisher 7% | Gunner Dominant Class ---------------- Mutant | -10/Materials Mutant | -9/Materials Skirmisher | -8/Materials Resources | -11 -10 -9 -8 ----------- Run | Yrd Mat Mat Mat Matter Collected 1329 | 219 101 92 917 Remotely . | . . . . Salvage Created 1792 | . . 196 1596 Parts 106 | . . 11 95 Haulers Intercepted . | . . . . Recyclers Shooed . | . . . . Parts Field Recycled . | . . . . Retrieved Matter . | . . . . Parts Self-Destructed . | . . . . Prevented . | . . . . Kills | -11 -10 -9 -8 ------- Run | Yrd Mat Mat Mat Combat Hostiles Destroyed 41 | . . 4 37 Guns 33 | . . 3 30 AOE 8 | . . 1 7 Classes Destroyed 9 | . . 2 7 Worker 3 | . . . 3 Builder 1 | . . . 1 Operator 1 | . . . 1 Swarmer 8 | . . . 8 Grunt 23 | . . 2 21 Brawler 1 | . . . 1 Duelist 1 | . . . 1 Protector 1 | . . . 1 Sentry 7 | . . 2 5 Best Kill Streak 10 | . . 3 10 Combat Bots Only 7 | . . 3 7 Max Kills in Single Turn 2 | . . 2 2 Gunslinging 1 | . . 1 1 Exploded 2 | . . 1 2 Melee . | . . . . Uniques/NPCs Destroyed . | . . . . Combat | -11 -10 -9 -8 -------- Run | Yrd Mat Mat Mat Hostile Shots Fired 288 | . . 22 266 Missed 89 | . . 7 82 Damage Taken 3551 | . . 254 3297 Core 631 | . . 69 562 Absorbed by Shields . | . . . . Redirected to Shielding 105 | . . . 105 Core Remaining (%) 94 | 100 100 82 . Volleys Fired 99 | . . 8 91 Largest 3 | . . 2 3 Hottest 100 | . . 68 100 Shots Fired 247 | . . 16 231 Gun 229 | . . 16 213 Cannon 4 | . . . 4 Launcher 14 | . . . 14 Special . | . . . . Kinetic 221 | . . 8 213 Thermal 4 | . . . 4 Explosive 14 | . . . 14 Electromagnetic 8 | . . 8 . Robot Hit Streak 16 | . . 10 16 Robot Miss Streak 5 | . . 2 5 Penetration Max . | . . . . Secondary Targets 6 | . . 1 5 Max Gunslinging Chain 1 | . . 1 1 Shots Hit Robots 158 | . . 9 149 Core Hits 90 | . . 9 81 Critical Kills 1 | . . . 1 Critical Parts Destroyed . | . . . . Critical Strikes 1 | . . . 1 Destroy 1 | . . . 1 Melee Attacks . | . . . . Impact . | . . . . Slashing . | . . . . Piercing . | . . . . Sneak Attacks . | . . . . Combat Hostiles . | . . . . Follow-up Attacks . | . . . . Damage Inflicted 3209 | . . 224 2985 Guns 2368 | . . 162 2206 Cannons 95 | . . . 95 Explosions 743 | . . 62 681 Melee . | . . . . Ramming 3 | . . . 3 Kinetic 2294 | . . 88 2206 Thermal 157 | . . 62 95 Explosive 681 | . . . 681 Electromagnetic 74 | . . 74 . Impact . | . . . . Slashing . | . . . . Piercing . | . . . . Highest Corruption . | . . . . Average Corruption . | . . . . Corruption Purged . | . . . . Corruption Blocked . | . . . . Overload Shots . | . . . . Overflow Damage 4 | . . . 4 Projectiles 4 | . . . 4 Explosions . | . . . . Melee . | . . . . Knockbacks . | . . . . Impact . | . . . . Kinetic . | . . . . Secondary . | . . . . Self-Inflicted Damage 154 | . . 39 115 Shots 7 | . . 1 6 Rammed 3 | . . . 3 Targets Rammed 3 | . . . 3 Kicked . | . . . . Crushed . | . . . . Highest Temperature 162 | . . 72 162 Average Temperature 32 | . . 32 32 Received Heat Transfer 1467 | . . 99 1368 Siege Activations . | . . . . Robots Corrupted . | . . . . Combat Hostiles . | . . . . Parts Fried . | . . . . Impact Corruptions . | . . . . Robots Melted . | . . . . Combat Hostiles . | . . . . Parts Melted . | . . . . Heat Transferred 248 | . . 100 148 Parts Sabotaged . | . . . . Parts Stolen . | . . . . Parts Stripped . | . . . . Power Chain Reactions 1 | . . 1 . Alert | -11 -10 -9 -8 ------- Run | Yrd Mat Mat Mat Peak Influence 700 | . 15 138 700 Initial 5 | . . 5 . Average 230 | . . 59 390 Maximum Alert Level 3 | . . . 3 Low Security (%) 58 | 100 100 100 24 Level 1 13 | . . . 23 Level 2 28 | . . . 51 Level 3 . | . . . . Level 4 . | . . . . Level 5 . | . . . . High Security . | . . . . Max Security . | . . . . Squads Dispatched 8 | . . . 8 Investigation 1 | . . . 1 Extermination . | . . . . Reinforcement 3 | . . . 3 Assault 1 | . . . 1 Garrison 3 | . . . 3 Intercept . | . . . . Searches Triggered . | . . . . Construction Impeded . | . . . . Haulers Reinforced . | . . . . Active Scanning Responses . | . . . . Cargo Convoy Interrupts . | . . . . Stealth | -11 -10 -9 -8 --------- Run | Yrd Mat Mat Mat Distress Signals 2 | . . . 2 Communications Jammed . | . . . . Distress Signals . | . . . . Times Spotted 57 | . 1 6 50 Peak Tracking Total 8 | . 1 4 8 Tactical Retreats . | . . . . Traps | -11 -10 -9 -8 ------- Run | Yrd Mat Mat Mat Traps Triggered 1 | . . . 1 Indirectly . | . . . . Trap Hack Attempts . | . . . . Triggered . | . . . . Disarmed . | . . . . Reprogrammed . | . . . . Reused . | . . . . Traps Extracted . | . . . . Installed . | . . . . Triggered . | . . . . Machines | -11 -10 -9 -8 ---------- Run | Yrd Mat Mat Mat Machines Disabled 3 | . . . 3 Max in Single Turn 2 | . . . 2 Machines Repaired . | . . . . Machines Dismantled . | . . . . Machines Sabotaged . | . . . . Overloaded Fab Kills . | . . . . Hacking | -11 -10 -9 -8 --------- Run | Yrd Mat Mat Mat Machines Accessed 1 | . . 1 . Terminals 1 | . . 1 . Fabricators . | . . . . Repair Stations . | . . . . Recycling Units . | . . . . Scanalyzers . | . . . . Garrison Access . | . . . . Total Hacks 1 | . . 1 . Successful . | . . . . Failed 1 | . . 1 . Catastrophic 1 | . . 1 . Database Lockouts . | . . . . Manual 1 | . . 1 . Terminals 1 | . . 1 . Fabricators . | . . . . Repair Stations . | . . . . Recycling Units . | . . . . Scanalyzers . | . . . . Garrison Access . | . . . . Terminal Hacks . | . . . . Fabricator Hacks . | . . . . Repair Station Hacks . | . . . . Recycling Unit Hacks . | . . . . Scanalyzer . | . . . . Garrison Access Hacks . | . . . . Unauthorized Hacks . | . . . . Terminals . | . . . . Fabricators . | . . . . Repair Stations . | . . . . Recycling Units . | . . . . Scanalyzers . | . . . . Garrison Access . | . . . . Data Cores Recovered . | . . . . Used . | . . . . Hacking Detections 1 | . . 1 . Full Trace Events . | . . . . Feedback Events . | . . . . Feedback Blocked . | . . . . Robot Schematics Acquired . | . . . . Robots Built . | . . . . Authchips . | . . . . Time . | . . . . Total Robot Build Rating . | . . . . Part Schematics Acquired . | . . . . Parts Built . | . . . . Authchips . | . . . . Time . | . . . . Total Part Build Rating . | . . . . Parts Repaired . | . . . . Time . | . . . . Parts Recycled . | . . . . Recycled Matter . | . . . . Retrieved Matter . | . . . . Retrieved Components . | . . . . Parts Scanalyzed . | . . . . Part Schematics Acquired . | . . . . Parts Damaged . | . . . . Bothacking | -11 -10 -9 -8 ------------ Run | Yrd Mat Mat Mat Used RIF Installer . | . . . . Robots Hacked . | . . . . Non-combat . | . . . . Combat . | . . . . Robot Hacks Applied . | . . . . Relay Couplers Released . | . . . . Fabnet Peak Effective % . | . . . . Robots Rewired . | . . . . Allies Hacked . | . . . . Hacks Repelled . | . . . . Allies | -11 -10 -9 -8 -------- Run | Yrd Mat Mat Mat Total Allies . | . . . . Largest Group . | . . . . Highest-Rated Group . | . . . . Highest-Rated Ally . | . . . . Total Orders . | . . . . Ally Attacks . | . . . . Total Damage . | . . . . Kills . | . . . . Allies Corrupted . | . . . . Allies Melted . | . . . . Intel | -11 -10 -9 -8 ------- Run | Yrd Mat Mat Mat Robot Analysis Total . | . . . . Derelict Logs Recovered . | . . . . Drone Launches . | . . . . Drone Recoveries . | . . . . Exploration | -11 -10 -9 -8 ------------- Run | Yrd Mat Mat Mat Turns Passed 1764 | 59 276 461 968 Spaces Moved 789 | 42 170 230 347 Core 18 | 13 . . 5 Treads 449 | . . 177 272 Legs 322 | 29 170 53 70 Wheels . | . . . . Hover . | . . . . Flight . | . . . . Fastest Speed 50 | 50 120 170 170 Average Speed 167 | 110 147 174 178 Slowest Speed 600 | 190 190 250 600 Overloaded Moves . | . . . . Propulsion Burnouts . | . . . . Robots Hopped . | . . . . Cave-ins Triggered . | . . . . Exploration Rate (%) 21 | 4 30 17 36 Regions Visited 3 Branch Regions . Pre-discovered Areas . | . . . . Known Exits Taken . | . . . . Unknown Exits Taken 3 | 1 1 1 . Scrap Searched . | . . . . Spaces Dug . | . . . . Terrain Destroyed 80 | . . 2 78 Melee . | . . . . Projectile . | . . . . AOE 80 | . . 2 78 Terrain Rammed . | . . . . Walls Destroyed . | . . . . Machines Disabled . | . . . . Actions | -11 -10 -9 -8 --------- Run | Yrd Mat Mat Mat Total 1073 | 51 195 274 553 Wait 113 | 2 14 21 76 Move 786 | 41 169 229 347 Hop . | . . . . Pick Up 19 | 2 2 5 10 Fast Attach 15 | 6 4 4 1 Attach 18 | . 1 1 16 Detach 9 | . 4 3 2 Swap 4 | . 1 1 2 Drop 7 | . . 2 5 Fire 99 | . . 8 91 Melee . | . . . . Ram 1 | . . . 1 Kick . | . . . . Crush 2 | . . . 2 Escape Stasis . | . . . . Rewire . | . . . . Trap . | . . . . Miscellaneous . | . . . . Route ------- -11/Scrapyard -10/Materials (discovered 2 exits: *Mat / [*Min]) -9/Materials (discovered 2 exits: [*Mat] / [*Sto]) -8/Materials History --------- Turn | Location | Event 33 | -11/Scrapyard | Discovered new exit (range 13) 60 | -11/Scrapyard | Entered Materials 159 | -10/Materials | Discovered new exit (range 11) 254 | -10/Materials | Discovered new exit (range 7) 306 | -10/Materials | Build established: Mutant 336 | -10/Materials | Entered another Materials area 336 | -9/Materials | Evolved 2 slots: Propulsion x1, Utility x1 686 | -9/Materials | Discovered new exit (range 15) 695 | -9/Materials | Discovered new exit (range 16) 797 | -9/Materials | Entered another Materials area 797 | -8/Materials | Evolved 2 slots: Utility x1, Weapon x1 957 | -8/Materials | Garrison activated, responded to threat 1098 | -8/Materials | Build established: Skirmisher 1208 | -8/Materials | Destroyed 7 combat bots 1597 | -8/Materials | First assault squad dispatched 1714 | -8/Materials | Core integrity fell below 50% 1750 | -8/Materials | Core integrity fell below 20% 1765 | -8/Materials | Destroyed by G-47 Trooper with Particle Gun Last Messages --------------- 01719_ Imp. Heat Sink crushed. 01721_ Destroyed Transmission Jammer. 01724_ K-01 Serf collects debris. 01724_ Penetrated by Slug. 01724_ Carbon-fiber Leg destroyed. 01724_ Assault Rifle blasted off. 01724_ Knocked back. 01725_ Acquired 11 matter. 01729_ Penetrated by Slug. 01729_ K-01 Serf collects debris. 01730_ Slammed into K-01 Serf. 01733_ The unstable cave ceiling collapses. 01737_ Knocked back. 01739_ Ion Cannon destroyed. 01743_ Critical hit (Burn: +37). 01747_ Com. Battery destroyed. 01747_ Hrd. Medium Armor Plating destroyed. 01751_ Imp. Heat Sink destroyed. 01758_ Lgt. Assault Rifle destroyed. 01763_ Ion Engine destroyed. Map ----- +----------------------------------------------------+ | | | | | | | | | | | | | | | | | | | ?????????????????????????????????#???????????????? | | ???????????????????????######?## ##??????????????? | | ?????????????????????###!!!!### #??????????????? | | ????????????????????## ! !# #??????????????? | | ???????????#####???## ##?????????????? | | ???######### # #### # # #?????????????? | | ?? #?????????????? | | ?? = | * ###### #??? | | ?? ^^ %=% H =! +??? | | ?????????##### # g ###### ###### #??? | | ?????????????# gg %%# #??????????? | | ?????????????####;[[ ## ## [! #??????????? | | ????????????????## ;###### #??????????? | | ????????????????## # #??????????? | | ????????????????# w + """ #??????????? | | ????????????????## % # """ #??????????? | | ?????????????????###"#""#@ # """ "T" #?###+###### | | ?????????????????? ]# # #?# | | ???????????????? # #########+### = | | ??????????????? """ """ # ####### # / | | ??????????????+ """ """ # [# | | ??????????????# """ """ + /* | | ???????????????? # =#! | | ???????????????? ? !# ####### [ # | | ???????????????? ?? # #?????## ## | | ?????????????????###??### #??????# ########### | | ????????????????????????? #??????# #????????## | | ????????????????????????? #??????# +????????# | | ????????????????????????? #??????# #????????# | | ????????????????????????? #??????# #????????## | | ?????????????????????????r #??????# #?????????# | | ????????????????????????? ??????? ########## | | ??????????????????????????????????? | | ??????????????????????????????????# | | ??????????????????????????????????# | | ??????????????????????????????????? ???######## | | ?????????????????????????????????????????????????? | | ?????????????????????????????????????????????????? | | ?????????????????????????????????????????????????? | | ?????????????????????????????????????????????????? | | ?????????????????????????????????????????######### | +----------------------------------------------------+ Best States ------------- Heat Dissipation 45 Coolant Potential 50 Energy Generation 12 Energy Capacity 450 Matter Stores 300 Matter Capacity 300 Sight Range 16 Robot Scan Range 14 Terrain Scan Density 10 Armor Coverage 225 Power Shielding 66 Evasion (%) 55 Targeting Accuracy 5 Recoil Reduction 3 Item Schematics ----------------- None Robot Schematics ------------------ None Fabricated ------------ Nothing Alien Tech Used ----------------- None Achievements -------------- Significant Disruption Troublemaker Challenges ------------ None Game ------ Seed LauncherMachineWell Manual? 0 Play Time 00:29:43 Cumulative 9.3 hours Start 2024.08.16 @ 15:08:31 End 2024.08.16 @ 16:54:44 Sessions 2 Manual Loads 0 Difficulty Rogue Special Mode None Game No. 13 Rogue 13 Adventurer 0 Explorer 0 Win Type - Total 0 Types 0/0/0/0/0/0/0/0/0 Lore% 6 Gallery% 12 Achievement% 11 Wizard Run 0 Options --------- Layout 1 ASCII 0 Keyboard 1 Movement Numpad Keybinds 1 Fullscreen 1 Font 32/SmallcapsGlow Map View 50x35 Zoom Use 0% Tactical HUD 1 Map Filters NONE Filters NONE Steam 1 RUN: 3b8d731d-ed9b-45df-9699-a07cd4dad084